{"text_format":"3","workbook":"xlsx","n_sheets":4,"sheets":["Lista de la compra","Desglose del presupuesto","Lista de tareas pendientes","Lista de uso compartido"],"not_rendered":{"charts":2,"images":2,"defined_names":12},"read":"whole","date_system":"1900"}

{"sheet":"Lista de la compra","index":0,"n_rows":25,"n_cols":8,"rows_kept":25,"merged":[[2,1,2,7],[3,1,3,2],[4,4,6,7]]}
[null,"Vuelta al colegio","Organizador"]
[]
[null,"Compare el progreso de las compras realizadas con los totales del presupuesto por categorías indicado en Desglose del presupuesto."]
[null,"Resumen del presupuesto",null,null,{"$f":"\"Informe de compras (\"&COUNTIFS(Lista_de_comprobación[Comprado], \">0\")&\" de \"&COUNTIFS(Lista_de_comprobación[Comprar], \">0\")&\")\"","v":"Informe de compras (1 de 6)"}]
[null,"Presupuesto",{"v":1500,"d":"1,500.00 €"},null,{"$f":"IFERROR(COUNTIFS(Lista_de_comprobación[Comprar],\">0\",Lista_de_comprobación[Comprado],\">0\")/SumaArtículosComprar,0)","v":{"v":0.16666666666666666,"d":"17%"}}]
[null,"Total de Lista de la compra",{"$f":"IFERROR(SUM(TotalListaComprobación), \"\")","v":{"v":365,"d":"365.00 €"}}]
[null,"Saldo disponible",{"$f":"IFERROR(C5-C6, \"\")","v":{"v":1135,"d":"1,135.00 €"}}]
[null,"Lista de la compra"]
[null,"Artículo","Categoría","Cantidad","Comprar","Precio","Comprado","Coste total"]
[null,"Matemáticas","Libros de texto",1,1,{"v":55,"d":"55.00 €"},1,{"$f":"IFERROR(Lista_de_comprobación[Cantidad]*Lista_de_comprobación[Precio], \"\")","v":{"v":55,"d":"55.00 €"}}]
[null,"Inglés","Libros de texto",1,1,null,null,{"$f":"IFERROR(Lista_de_comprobación[Cantidad]*Lista_de_comprobación[Precio], \"\")","v":0}]
[null,"Mochila","Material escolar",1,null,{"v":30,"d":"30.00 €"},null,{"$f":"IFERROR(Lista_de_comprobación[Cantidad]*Lista_de_comprobación[Precio], \"\")","v":{"v":30,"d":"30.00 €"}}]
[null,"Calculadora","Material escolar",1,{"$nulls":3},{"$f":"IFERROR(Lista_de_comprobación[Cantidad]*Lista_de_comprobación[Precio], \"\")","v":0}]
[null,"Marcadores","Material escolar",3,{"$nulls":3},{"$f":"IFERROR(Lista_de_comprobación[Cantidad]*Lista_de_comprobación[Precio], \"\")","v":0}]
[null,"Uniforme","Ropa",2,1,{"v":100,"d":"100.00 €"},null,{"$f":"IFERROR(Lista_de_comprobación[Cantidad]*Lista_de_comprobación[Precio], \"\")","v":{"v":200,"d":"200.00 €"}}]
[null,"Camisa","Ropa",4,{"$nulls":3},{"$f":"IFERROR(Lista_de_comprobación[Cantidad]*Lista_de_comprobación[Precio], \"\")","v":0}]
[null,"Camisetas","Ropa",5,{"$nulls":3},{"$f":"IFERROR(Lista_de_comprobación[Cantidad]*Lista_de_comprobación[Precio], \"\")","v":0}]
[null,"Pantalones cortos","Ropa",2,{"$nulls":3},{"$f":"IFERROR(Lista_de_comprobación[Cantidad]*Lista_de_comprobación[Precio], \"\")","v":0}]
[null,"Zapatillas","Ropa",2,1,null,null,{"$f":"IFERROR(Lista_de_comprobación[Cantidad]*Lista_de_comprobación[Precio], \"\")","v":0}]
[null,"Calcetines","Ropa",10,{"$nulls":3},{"$f":"IFERROR(Lista_de_comprobación[Cantidad]*Lista_de_comprobación[Precio], \"\")","v":0}]
[null,"Chaqueta","Ropa",1,1,{"v":80,"d":"80.00 €"},null,{"$f":"IFERROR(Lista_de_comprobación[Cantidad]*Lista_de_comprobación[Precio], \"\")","v":{"v":80,"d":"80.00 €"}}]
[null,"Jerséis","Ropa",1,{"$nulls":3},{"$f":"IFERROR(Lista_de_comprobación[Cantidad]*Lista_de_comprobación[Precio], \"\")","v":0}]
[null,"Sudaderas","Ropa",1,{"$nulls":3},{"$f":"IFERROR(Lista_de_comprobación[Cantidad]*Lista_de_comprobación[Precio], \"\")","v":0}]
[null,"Ropa interior","Ropa",10,{"$nulls":3},{"$f":"IFERROR(Lista_de_comprobación[Cantidad]*Lista_de_comprobación[Precio], \"\")","v":0}]
[null,"Abrigo","Ropa",1,1,null,null,{"$f":"IFERROR(Lista_de_comprobación[Cantidad]*Lista_de_comprobación[Precio], \"\")","v":0}]

{"sheet":"Desglose del presupuesto","index":1,"n_rows":6,"n_cols":3,"rows_kept":6}
[null,"Desglose del presupuesto"]
[null,"Agregue categorías y el presupuesto correspondiente para realizar una comparación con la Lista de la compra."]
[null,"Categoría","Coste total"]
[null,"Ropa",{"$f":"IFERROR(SUMIFS(Lista_de_comprobación[Coste total],Lista_de_comprobación[Categoría],Categoría[Categoría]), \"\")","v":{"v":280,"d":"280.00 €"}}]
[null,"Material escolar",{"$f":"IFERROR(SUMIFS(Lista_de_comprobación[Coste total],Lista_de_comprobación[Categoría],Categoría[Categoría]), \"\")","v":{"v":30,"d":"30.00 €"}}]
[null,"Libros de texto",{"$f":"IFERROR(SUMIFS(Lista_de_comprobación[Coste total],Lista_de_comprobación[Categoría],Categoría[Categoría]), \"\")","v":{"v":55,"d":"55.00 €"}}]

{"sheet":"Lista de tareas pendientes","index":2,"n_rows":22,"n_cols":3,"rows_kept":22}
[null,"Lista de tareas pendientes"]
[null,"Enumere todas las tareas que tenga que completar antes del primer día de colegio para realizar un seguimiento."]
[null,"Realizada","Tarea"]
[null,"x","Rellenar los impresos de matrícula"]
[null,null,"Programar la revisión médica y la prueba de visión en caso necesario"]
[null,null,"Comprobar las vacunas obligatorias"]
[null,null,"Solicitar al médico las dosis para la medicación"]
[null,null,"Revisar el código de vestimenta de la escuela"]
[null,null,"Obtener una lista del material escolar"]
[null,null,"Reunirse con los profesores"]
[null,null,"Preguntar el medio de comunicación preferido de los profesores (teléfono, correo electrónico o notas escritas)"]
[null,null,"Hacer un recorrido por las instalaciones con los niños"]
[null,null,"Ayudar a los niños para que memoricen el teléfono y la dirección de casa, y el teléfono del trabajo"]
[null,null,"Organizar el transporte, designar un punto de recogida seguro y practicar el trayecto"]
[null,null,"Si el trayecto al colegio se realiza a pie, practicar varias veces con los niños"]
[null,null,"Si se comparte coche, presentar a los niños a los demás conductores"]
[null,null,"Si los niños van en bus, consultar el horario y las paradas"]
[null,null,"Organizar la guardería o las actividades extraescolares después del colegio"]
[null,null,"Planificar el desayuno, el almuerzo, la comida y la merienda"]
[null,null,"Determinar la programación y la ubicación para realizar los deberes"]
[null,null,"Establecer una rutina para ir a la cama al menos dos semanas antes del primer día de colegio"]
[null,null,"Hacer un calendario con las actividades y los eventos del colegio"]

{"sheet":"Lista de uso compartido","index":3,"n_rows":4,"n_cols":5,"rows_kept":4}
[null,"Lista de uso compartido",null,null,"Comparta esta lista con otras personas para que puedan contribuir. Seleccione Compartir en la esquina superior derecha o presione ALT y, después, YU. Guarde el archivo en OneDrive y envíe el vínculo a sus amigos."]
[null,"Nombre","Correo electrónico","¿Compartido?"]
[null,"Persona 1","nombre@correo.com","Sí"]
[null,"Persona 2","nombre@correo.com","No"]